[Event "Esbjerg Efterår 2024 - Esbjergmesterskabet"]
[Site "Esbjerg, Denmark"]
[Date "2024.10.18"]
[Round "1.1"]
[White "Jacobsen, Mikkel Mansori"]
[Black "Iversen, Tobias"]
[Result "1-0"]
[TimeControl "1.-3. 20 min + 5 sek, 4.-7. 90 min + 30 sek + 15 min efter 40 træk"]
[WhiteElo "2350"]
[BlackElo "1936"]

1. c4 {[%clk 00:14:15]} {[%emt 00:05:55]} c6 {[%clk 00:19:59]} {[%emt
00:00:11]} 2. g3 {[%clk 00:14:18]} {[%emt 00:00:02]} d5 {[%clk 00:20:01]}
{[%emt 00:00:03]} 3. Nf3 {[%clk 00:14:21]} {[%emt 00:00:01]} Nf6 {[%clk
00:19:35]} {[%emt 00:00:32]} 4. Bg2 {[%clk 00:14:25]} {[%emt 00:00:01]} h6
{[%clk 00:18:45]} {[%emt 00:00:54]} 5. O-O {[%clk 00:14:27]} {[%emt 00:00:03]}
Bf5 {[%clk 00:18:19]} {[%emt 00:00:31]} 6. Qb3 {[%clk 00:14:30]} {[%emt
00:00:02]} Qb6 {[%clk 00:18:04]} {[%emt 00:00:21]} 7. d3 {[%clk 00:14:33]}
{[%emt 00:00:01]} e6 {[%clk 00:17:14]} {[%emt 00:00:56]} 8. Be3 {[%clk
00:14:36]} {[%emt 00:00:02]} Qxb3 {[%clk 00:16:19]} {[%emt 00:00:59]} 9. axb3
{[%clk 00:14:39]} {[%emt 00:00:03]} a6 {[%clk 00:16:15]} {[%emt 00:00:09]} 10.
Bd4 {[%clk 00:14:43]} {[%emt 00:00:01]} Nbd7 {[%clk 00:16:12]} {[%emt
00:00:09]} 11. Bc3 {[%clk 00:14:45]} {[%emt 00:00:02]} Be7 {[%clk 00:15:06]}
{[%emt 00:01:10]} 12. Nbd2 {[%clk 00:14:46]} {[%emt 00:00:05]} O-O {[%clk
00:14:59]} {[%emt 00:00:13]} 13. b4 {[%clk 00:14:49]} {[%emt 00:00:02]} Bg6
{[%clk 00:13:54]} {[%emt 00:01:09]} 14. Rfd1 {[%clk 00:14:45]} {[%emt
00:00:08]} Rfd8 {[%clk 00:11:33]} {[%emt 00:02:26]} 15. h3 {[%clk 00:14:47]}
{[%emt 00:00:04]} c5 {[%clk 00:10:10]} {[%emt 00:01:29]} 16. bxc5 {[%clk
00:14:23]} {[%emt 00:00:29]} Bxc5 {[%clk 00:10:06]} {[%emt 00:00:08]} 17. b4
{[%clk 00:13:48]} {[%emt 00:00:40]} Bd6 {[%clk 00:10:10]} {[%emt 00:00:02]} 18.
Rdb1 {[%clk 00:10:06]} {[%emt 00:03:46]} b6 {[%clk 00:08:43]} {[%emt 00:01:33]}
19. Ra2 {[%clk 00:09:25]} {[%emt 00:00:46]} e5 {[%clk 00:06:55]} {[%emt
00:01:53]} 20. Nh4 {[%clk 00:08:50]} {[%emt 00:00:40]} Bh7 {[%clk 00:06:28]}
{[%emt 00:00:32]} 21. Bxd5 {[%clk 00:08:33]} {[%emt 00:00:22]} Nxd5 {[%clk
00:06:21]} {[%emt 00:00:12]} 22. cxd5 {[%clk 00:08:36]} {[%emt 00:00:02]} Rdc8
{[%clk 00:06:14]} {[%emt 00:00:12]} 23. Ba1 {[%clk 00:08:36]} {[%emt 00:00:05]}
b5 {[%clk 00:04:55]} {[%emt 00:01:24]} 24. g4 {[%clk 00:07:54]} {[%emt
00:00:46]} Nb6 {[%clk 00:03:03]} {[%emt 00:01:57]} 25. e4 {[%clk 00:07:58]}
{[%emt 00:00:02]} Na4 {[%clk 00:02:49]} {[%emt 00:00:20]} 26. Kf1 {[%clk
00:07:41]} {[%emt 00:00:21]} Rc7 {[%clk 00:02:32]} {[%emt 00:00:22]} 27. Ke2
{[%clk 00:07:35]} {[%emt 00:00:10]} Rac8 {[%clk 00:02:33]} {[%emt 00:00:05]} 28.
Kd1 {[%clk 00:06:06]} {[%emt 00:01:34]} f6 {[%clk 00:02:29]} {[%emt 00:00:10]}
29. Ng2 {[%clk 00:06:08]} {[%emt 00:00:02]} Kf7 {[%clk 00:02:23]} {[%emt
00:00:11]} 30. Ne3 {[%clk 00:06:11]} {[%emt 00:00:02]} Bg6 {[%clk 00:01:57]}
{[%emt 00:00:31]} 31. Rxa4 {[%clk 00:03:08]} {[%emt 00:03:08]} bxa4 {[%clk
00:01:57]} {[%emt 00:00:04]} 32. Ndc4 {[%clk 00:03:12]} {[%emt 00:00:02]} Bf8
{[%clk 00:01:45]} {[%emt 00:00:17]} 33. Bc3 {[%clk 00:02:36]} {[%emt 00:00:40]}
Rb8 {[%clk 00:01:38]} {[%emt 00:00:13]} 34. f3 {[%clk 00:02:10]} {[%emt
00:00:30]} Rcb7 {[%clk 00:01:17]} {[%emt 00:00:26]} 1-0

[Event "Esbjerg Efterår 2024 - Esbjergmesterskabet"]
[Site "Esbjerg, Denmark"]
[Date "2024.10.18"]
[Round "1.2"]
[White "LIndgaard, Tobias Simon"]
[Black "Medhus, Vitus Bondo"]
[Result "0-1"]
[TimeControl "1.-3. 20 min + 5 sek, 4.-7. 90 min + 30 sek + 15 min efter 40 træk"]
[WhiteElo "1879"]
[BlackElo "2246"]

1. c4 {[%clk 00:20:04]} {[%emt 00:00:05]} c5 {[%clk 00:20:09]} {[%emt
00:00:02]} 2. g3 {[%clk 00:20:07]} {[%emt 00:00:03]} Nc6 {[%clk 00:20:08]}
{[%emt 00:00:05]} 3. Bg2 {[%clk 00:20:09]} {[%emt 00:00:03]} d6 {[%clk
00:20:09]} {[%emt 00:00:05]} 4. Nc3 {[%clk 00:20:11]} {[%emt 00:00:02]} e5
{[%clk 00:20:12]} {[%emt 00:00:03]} 5. e3 {[%clk 00:20:13]} {[%emt 00:00:02]}
Be7 {[%clk 00:20:09]} {[%emt 00:00:08]} 6. Nge2 {[%clk 00:20:13]} {[%emt
00:00:04]} Be6 {[%clk 00:20:09]} {[%emt 00:00:06]} 7. b3 {[%clk 00:20:10]}
{[%emt 00:00:08]} Nf6 {[%clk 00:19:44]} {[%emt 00:00:30]} 8. d4 {[%clk
00:20:07]} {[%emt 00:00:09]} exd4 {[%clk 00:19:40]} {[%emt 00:00:09]} 9. exd4
{[%clk 00:20:07]} {[%emt 00:00:03]} d5 {[%clk 00:19:31]} {[%emt 00:00:16]} 10.
dxc5 {[%clk 00:19:36]} {[%emt 00:00:37]} dxc4 {[%clk 00:19:26]} {[%emt
00:00:10]} 11. O-O {[%clk 00:19:26]} {[%emt 00:00:14]} O-O {[%clk 00:19:05]}
{[%emt 00:00:26]} 12. Nf4 {[%clk 00:18:16]} {[%emt 00:01:15]} cxb3 {[%clk
00:18:23]} {[%emt 00:00:47]} 13. Nxe6 {[%clk 00:18:05]} {[%emt 00:00:17]} Qxd1
{[%clk 00:18:25]} {[%emt 00:00:03]} 14. Rxd1 {[%clk 00:17:59]} {[%emt
00:00:11]} fxe6 {[%clk 00:18:26]} {[%emt 00:00:03]} 15. axb3 {[%clk 00:17:14]}
{[%emt 00:00:50]} Bxc5 {[%clk 00:18:28]} {[%emt 00:00:03]} 16. Ba3 {[%clk
00:16:41]} {[%emt 00:00:39]} Bxa3 {[%clk 00:17:36]} {[%emt 00:00:57]} 17. Rxa3
{[%clk 00:16:38]} {[%emt 00:00:07]} Ng4 {[%clk 00:16:46]} {[%emt 00:00:54]} 18.
Ne4 {[%clk 00:15:51]} {[%emt 00:00:52]} Rad8 {[%clk 00:16:27]} {[%emt
00:00:25]} 19. Raa1 {[%clk 00:14:56]} {[%emt 00:01:00]} Nd4 {[%clk 00:14:11]}
{[%emt 00:02:21]} 20. h3 {[%clk 00:14:07]} {[%emt 00:00:54]} Ne2+ {[%clk
00:11:43]} {[%emt 00:02:34]} 21. Kf1 {[%clk 00:13:10]} {[%emt 00:01:02]} Nxg3+
{[%clk 00:11:31]} {[%emt 00:00:17]} 22. Nxg3 {[%clk 00:13:09]} {[%emt
00:00:06]} Rxf2+ {[%clk 00:10:26]} {[%emt 00:01:10]} 23. Kg1 {[%clk 00:12:45]}
{[%emt 00:00:30]} Rxg2+ {[%clk 00:10:23]} {[%emt 00:00:08]} 24. Kxg2 {[%clk
00:12:31]} {[%emt 00:00:19]} Ne3+ {[%clk 00:10:25]} {[%emt 00:00:02]} 25. Kf3
{[%clk 00:12:25]} {[%emt 00:00:11]} Nxd1 {[%clk 00:10:27]} {[%emt 00:00:04]} 26.
Rxa7 {[%clk 00:12:20]} {[%emt 00:00:11]} Rd3+ {[%clk 00:10:01]} {[%emt
00:00:30]} 0-1

[Event "Esbjerg Efterår 2024 - Esbjergmesterskabet"]
[Site "Esbjerg, Denmark"]
[Date "2024.10.18"]
[Round "1.3"]
[White "Løftgaard, Mikkel Vinh"]
[Black "Desevac, Damir"]
[Result "1-0"]
[TimeControl "1.-3. 20 min + 5 sek, 4.-7. 90 min + 30 sek + 15 min efter 40 træk"]
[WhiteElo "2209"]
[BlackElo "1836"]

1. Nc3 {[%clk 00:14:22]} {[%emt 00:05:47]} e5 {[%clk 00:19:47]} {[%emt
00:00:22]} 2. d4 {[%clk 00:14:26]} {[%emt 00:00:02]} exd4 {[%clk 00:19:37]}
{[%emt 00:00:15]} 3. Qxd4 {[%clk 00:14:29]} {[%emt 00:00:02]} Nc6 {[%clk
00:19:35]} {[%emt 00:00:07]} 4. Qd3 {[%clk 00:14:31]} {[%emt 00:00:03]} Nf6
{[%clk 00:19:20]} {[%emt 00:00:20]} 5. e4 {[%clk 00:14:34]} {[%emt 00:00:02]}
d6 {[%clk 00:18:53]} {[%emt 00:00:32]} 6. Bg5 {[%clk 00:14:34]} {[%emt
00:00:05]} Be7 {[%clk 00:18:44]} {[%emt 00:00:13]} 7. O-O-O {[%clk 00:14:36]}
{[%emt 00:00:04]} O-O {[%clk 00:17:53]} {[%emt 00:00:55]} 8. f3 {[%clk
00:14:31]} {[%emt 00:00:11]} a6 {[%clk 00:17:15]} {[%emt 00:00:44]} 9. h4
{[%clk 00:14:17]} {[%emt 00:00:18]} Be6 {[%clk 00:16:54]} {[%emt 00:00:25]} 10.
h5 {[%clk 00:14:12]} {[%emt 00:00:11]} h6 {[%clk 00:16:20]} {[%emt 00:00:39]}
11. Be3 {[%clk 00:14:12]} {[%emt 00:00:06]} b5 {[%clk 00:16:09]} {[%emt
00:00:17]} 12. g4 {[%clk 00:14:06]} {[%emt 00:00:10]} Ne5 {[%clk 00:14:58]}
{[%emt 00:01:16]} 13. Qd2 {[%clk 00:14:09]} {[%emt 00:00:03]} c5 {[%clk
00:14:30]} {[%emt 00:00:32]} 14. Nd5 {[%clk 00:13:59]} {[%emt 00:00:15]} Bxd5
{[%clk 00:13:58]} {[%emt 00:00:37]} 15. exd5 {[%clk 00:14:02]} {[%emt
00:00:02]} b4 {[%clk 00:13:55]} {[%emt 00:00:08]} 16. g5 {[%clk 00:14:02]}
{[%emt 00:00:04]} hxg5 {[%clk 00:13:40]} {[%emt 00:00:20]} 17. Bxg5 {[%clk
00:13:56]} {[%emt 00:00:12]} Qa5 {[%clk 00:13:06]} {[%emt 00:00:39]} 18. Kb1
{[%clk 00:13:59]} {[%emt 00:00:02]} c4 {[%clk 00:11:53]} {[%emt 00:01:18]} 19.
f4 {[%clk 00:11:43]} {[%emt 00:02:21]} Ne4 {[%clk 00:09:56]} {[%emt 00:02:02]}
20. Qe3 {[%clk 00:11:27]} {[%emt 00:00:21]} Nxg5 {[%clk 00:07:32]} {[%emt
00:02:29]} 21. fxe5 {[%clk 00:11:23]} {[%emt 00:00:10]} Rac8 {[%clk 00:06:16]}
{[%emt 00:01:20]} 22. h6 {[%clk 00:10:53]} {[%emt 00:00:36]} g6 {[%clk
00:06:08]} {[%emt 00:00:13]} 23. Nh3 {[%clk 00:09:50]} {[%emt 00:01:08]} Nh7
{[%clk 00:05:39]} {[%emt 00:00:34]} 24. Nf4 {[%clk 00:09:15]} {[%emt 00:00:40]}
dxe5 {[%clk 00:05:26]} {[%emt 00:00:18]} 25. Bh3 {[%clk 00:06:58]} {[%emt
00:02:22]} Rcd8 {[%clk 00:04:37]} {[%emt 00:00:54]} 26. Qxe5 {[%clk 00:06:48]}
{[%emt 00:00:16]} Bf6 {[%clk 00:04:36]} {[%emt 00:00:06]} 27. Qe4 {[%clk
00:06:51]} {[%emt 00:00:02]} Bxb2 {[%clk 00:04:02]} {[%emt 00:00:39]} 28. Nxg6
{[%clk 00:06:20]} {[%emt 00:00:36]} Nf6 {[%clk 00:03:24]} {[%emt 00:00:44]} 29.
Qg2 {[%clk 00:04:57]} {[%emt 00:01:28]} Nxd5 {[%clk 00:02:39]} {[%emt
00:00:49]} 30. Ne5+ {[%clk 00:04:53]} {[%emt 00:00:09]} 1-0

[Event "Esbjerg Efterår 2024 - Esbjergmesterskabet"]
[Site "Esbjerg, Denmark"]
[Date "2024.10.18"]
[Round "1.4"]
[White "Madsen, Svend"]
[Black "Hansen, Lars"]
[Result "0-1"]
[TimeControl "1.-3. 20 min + 5 sek, 4.-7. 90 min + 30 sek + 15 min efter 40 træk"]
[WhiteElo "1832"]
[BlackElo "2203"]

1. e4 {[%clk 00:20:09]} {[%emt 00:00:01]} e6 {[%clk 00:20:02]} {[%emt
00:00:08]} 2. d4 {[%clk 00:20:11]} {[%emt 00:00:02]} d5 {[%clk 00:20:06]}
{[%emt 00:00:01]} 3. Nd2 {[%clk 00:20:14]} {[%emt 00:00:02]} Nf6 {[%clk
00:20:06]} {[%emt 00:00:04]} 4. e5 {[%clk 00:20:17]} {[%emt 00:00:03]} Nfd7
{[%clk 00:20:10]} {[%emt 00:00:01]} 5. Bd3 {[%clk 00:20:20]} {[%emt 00:00:02]}
c5 {[%clk 00:20:14]} 6. c3 {[%clk 00:20:24]} {[%emt 00:00:02]} Nc6 {[%clk
00:20:17]} {[%emt 00:00:01]} 7. Ne2 {[%clk 00:20:25]} {[%emt 00:00:03]} cxd4
{[%clk 00:20:17]} {[%emt 00:00:05]} 8. cxd4 {[%clk 00:20:28]} {[%emt 00:00:03]}
f6 {[%clk 00:20:21]} 9. exf6 {[%clk 00:20:25]} {[%emt 00:00:09]} Nxf6 {[%clk
00:20:24]} 10. O-O {[%clk 00:20:20]} {[%emt 00:00:10]} Bd6 {[%clk 00:20:26]}
{[%emt 00:00:02]} 11. Nf3 {[%clk 00:20:14]} {[%emt 00:00:13]} Qc7 {[%clk
00:20:26]} {[%emt 00:00:04]} 12. h3 {[%clk 00:20:05]} {[%emt 00:00:14]} O-O
{[%clk 00:20:22]} {[%emt 00:00:08]} 13. a3 {[%clk 00:19:33]} {[%emt 00:00:37]}
Bd7 {[%clk 00:20:17]} {[%emt 00:00:08]} 14. Bd2 {[%clk 00:19:31]} {[%emt
00:00:07]} Be8 {[%clk 00:19:56]} {[%emt 00:00:27]} 15. Rc1 {[%clk 00:17:09]}
{[%emt 00:02:27]} Bh5 {[%clk 00:19:34]} {[%emt 00:00:26]} 16. g4 {[%clk
00:16:29]} {[%emt 00:00:46]} Nxg4 {[%clk 00:18:27]} {[%emt 00:01:12]} 17. hxg4
{[%clk 00:14:49]} {[%emt 00:01:45]} Bxg4 {[%clk 00:17:38]} {[%emt 00:00:53]} 18.
Ng5 {[%clk 00:14:05]} {[%emt 00:00:49]} h6 {[%clk 00:12:44]} {[%emt 00:05:00]}
19. f3 {[%clk 00:14:07]} {[%emt 00:00:04]} Bf5 {[%clk 00:12:38]} {[%emt
00:00:10]} 20. Bxf5 {[%clk 00:14:00]} {[%emt 00:00:13]} Rxf5 {[%clk 00:12:36]}
{[%emt 00:00:06]} 21. Nxe6 {[%clk 00:13:08]} {[%emt 00:00:57]} Qf7 {[%clk
00:12:21]} {[%emt 00:00:20]} 22. Nc5 {[%clk 00:11:11]} {[%emt 00:02:02]} Rf8
{[%clk 00:10:30]} {[%emt 00:01:55]} 23. Rc3 {[%clk 00:09:02]} {[%emt 00:02:14]}
Qg6+ {[%clk 00:08:27]} {[%emt 00:02:08]} 24. Kf2 {[%clk 00:09:06]} {[%emt
00:00:01]} Qf6 {[%clk 00:07:43]} {[%emt 00:00:48]} 25. Nd7 {[%clk 00:08:20]}
{[%emt 00:00:52]} Rxf3+ {[%clk 00:05:20]} {[%emt 00:02:27]} 26. Rxf3 {[%clk
00:07:56]} {[%emt 00:00:29]} Qxf3+ {[%clk 00:05:23]} {[%emt 00:00:03]} 27. Kg1
{[%clk 00:07:39]} {[%emt 00:00:22]} Qg4+ {[%clk 00:05:17]} {[%emt 00:00:11]}
0-1

[Event "Esbjerg Efterår 2024 - Esbjergmesterskabet"]
[Site "Esbjerg, Denmark"]
[Date "2024.10.18"]
[Round "1.5"]
[White "Perets, Dmytro"]
[Black "Marcussen, Claus"]
[Result "1-0"]
[TimeControl "1.-3. 20 min + 5 sek, 4.-7. 90 min + 30 sek + 15 min efter 40 træk"]
[WhiteElo "2152"]
[BlackElo "1820"]

1. e4 {[%clk 00:20:08]} {[%emt 00:00:01]} d5 {[%clk 00:20:08]} {[%emt
00:00:02]} 2. d3 {[%clk 00:20:12]} {[%emt 00:00:02]} dxe4 {[%clk 00:19:46]}
{[%emt 00:00:27]} 3. dxe4 {[%clk 00:20:16]} {[%emt 00:00:02]} Qxd1+ {[%clk
00:19:49]} {[%emt 00:00:01]} 4. Kxd1 {[%clk 00:20:19]} {[%emt 00:00:02]} Nc6
{[%clk 00:19:44]} {[%emt 00:00:10]} 5. Be3 {[%clk 00:20:21]} {[%emt 00:00:04]}
e5 {[%clk 00:19:19]} {[%emt 00:00:29]} 6. Bc4 {[%clk 00:19:56]} {[%emt
00:00:30]} Nf6 {[%clk 00:19:05]} {[%emt 00:00:19]} 7. f3 {[%clk 00:20:00]}
{[%emt 00:00:02]} Bd6 {[%clk 00:17:53]} {[%emt 00:01:16]} 8. c3 {[%clk
00:19:48]} {[%emt 00:00:17]} O-O {[%clk 00:17:41]} {[%emt 00:00:16]} 9. Nd2
{[%clk 00:18:09]} {[%emt 00:01:44]} Na5 {[%clk 00:17:33]} {[%emt 00:00:12]} 10.
Bd3 {[%clk 00:17:46]} {[%emt 00:00:29]} b6 {[%clk 00:16:28]} {[%emt 00:01:10]}
11. b4 {[%clk 00:17:46]} {[%emt 00:00:05]} Nb7 {[%clk 00:16:31]} {[%emt
00:00:01]} 12. Nc4 {[%clk 00:17:35]} {[%emt 00:00:16]} Be6 {[%clk 00:16:14]}
{[%emt 00:00:23]} 13. Ne2 {[%clk 00:16:46]} {[%emt 00:00:53]} Rad8 {[%clk
00:16:03]} {[%emt 00:00:16]} 14. Kc2 {[%clk 00:16:41]} {[%emt 00:00:10]} Be7
{[%clk 00:15:14]} {[%emt 00:00:54]} 15. Nxe5 {[%clk 00:16:36]} {[%emt
00:00:10]} c5 {[%clk 00:15:06]} {[%emt 00:00:13]} 16. Nc6 {[%clk 00:16:27]}
{[%emt 00:00:15]} Rd7 {[%clk 00:15:03]} {[%emt 00:00:08]} 17. Nxe7+ {[%clk
00:16:30]} {[%emt 00:00:02]} Rxe7 {[%clk 00:15:07]} {[%emt 00:00:01]} 18. bxc5
{[%clk 00:16:33]} {[%emt 00:00:02]} bxc5 {[%clk 00:15:05]} {[%emt 00:00:07]} 19.
Nf4 {[%clk 00:16:16]} {[%emt 00:00:22]} Bd7 {[%clk 00:14:50]} {[%emt 00:00:20]}
20. Ba6 {[%clk 00:16:16]} {[%emt 00:00:06]} Ba4+ {[%clk 00:14:39]} {[%emt
00:00:16]} 21. Kd2 {[%clk 00:15:59]} {[%emt 00:00:22]} Nd6 {[%clk 00:14:04]}
{[%emt 00:00:40]} 22. Ke2 {[%clk 00:15:23]} {[%emt 00:00:41]} Rb8 {[%clk
00:13:21]} {[%emt 00:00:47]} 23. Rab1 {[%clk 00:15:21]} {[%emt 00:00:08]} Ree8
{[%clk 00:13:25]} 24. Rxb8 {[%clk 00:14:58]} {[%emt 00:00:29]} Rxb8 {[%clk
00:13:28]} {[%emt 00:00:01]} 25. Bxc5 {[%clk 00:14:26]} {[%emt 00:00:37]} Rb2+
{[%clk 00:13:16]} {[%emt 00:00:16]} 26. Ke3 {[%clk 00:14:15]} {[%emt 00:00:16]}
Nfe8 {[%clk 00:12:55]} {[%emt 00:00:25]} 27. Bxa7 {[%clk 00:12:37]} {[%emt
00:01:44]} Rxa2 {[%clk 00:12:26]} {[%emt 00:00:34]} 28. Be2 {[%clk 00:11:18]}
{[%emt 00:01:24]} Bb3 {[%clk 00:11:55]} {[%emt 00:00:36]} 29. Rb1 {[%clk
00:10:54]} {[%emt 00:00:29]} Nc4+ {[%clk 00:11:21]} {[%emt 00:00:39]} 30. Bxc4
{[%clk 00:10:58]} {[%emt 00:00:02]} Bxc4 {[%clk 00:11:25]} {[%emt 00:00:01]} 31.
Rb8 {[%clk 00:11:01]} {[%emt 00:00:02]} Kf8 {[%clk 00:11:29]} {[%emt 00:00:01]}
32. Bc5+ {[%clk 00:11:05]} 1-0

[Event "Esbjerg Efterår 2024 - Esbjergmesterskabet"]
[Site "Esbjerg, Denmark"]
[Date "2024.10.18"]
[Round "1.6"]
[White "Hansen, Joshua Kehlet"]
[Black "Saravana, Vedant Kumar"]
[Result "1-0"]
[TimeControl "1.-3. 20 min + 5 sek, 4.-7. 90 min + 30 sek + 15 min efter 40 træk"]
[WhiteElo "1819"]
[BlackElo "2115"]

1. Nf3 {[%clk 00:20:06]} {[%emt 00:00:03]} d5 {[%clk 00:19:55]} {[%emt
00:00:16]} 2. e3 {[%clk 00:20:03]} {[%emt 00:00:06]} Nf6 {[%clk 00:19:39]}
{[%emt 00:00:22]} 3. c4 {[%clk 00:20:01]} {[%emt 00:00:06]} e6 {[%clk
00:19:32]} {[%emt 00:00:12]} 4. d4 {[%clk 00:19:52]} {[%emt 00:00:15]} c6
{[%clk 00:19:31]} {[%emt 00:00:06]} 5. Nc3 {[%clk 00:19:46]} {[%emt 00:00:11]}
Nbd7 {[%clk 00:19:32]} {[%emt 00:00:03]} 6. b3 {[%clk 00:19:40]} {[%emt
00:00:12]} Bb4 {[%clk 00:18:46]} {[%emt 00:00:51]} 7. Bb2 {[%clk 00:19:31]}
{[%emt 00:00:14]} Ne4 {[%clk 00:18:16]} {[%emt 00:00:35]} 8. Qc2 {[%clk
00:19:18]} {[%emt 00:00:18]} Qa5 {[%clk 00:16:55]} {[%emt 00:01:26]} 9. Rc1
{[%clk 00:18:31]} {[%emt 00:00:52]} Qxa2 {[%clk 00:15:55]} {[%emt 00:01:06]} 10.
Nd2 {[%clk 00:15:41]} {[%emt 00:02:55]} Bxc3 {[%clk 00:15:00]} {[%emt
00:01:00]} 11. Bxc3 {[%clk 00:15:43]} {[%emt 00:00:03]} Qxc2 {[%clk 00:14:50]}
{[%emt 00:00:15]} 12. Rxc2 {[%clk 00:15:45]} {[%emt 00:00:03]} Nxc3 {[%clk
00:14:28]} {[%emt 00:00:28]} 13. Rxc3 {[%clk 00:15:48]} {[%emt 00:00:02]} Nf6
{[%clk 00:14:31]} {[%emt 00:00:02]} 14. f3 {[%clk 00:14:55]} {[%emt 00:00:58]}
O-O {[%clk 00:14:00]} {[%emt 00:00:36]} 15. c5 {[%clk 00:14:30]} {[%emt
00:00:30]} Re8 {[%clk 00:13:53]} {[%emt 00:00:12]} 16. b4 {[%clk 00:13:58]}
{[%emt 00:00:37]} e5 {[%clk 00:13:16]} {[%emt 00:00:42]} 17. dxe5 {[%clk
00:13:22]} {[%emt 00:00:40]} Rxe5 {[%clk 00:13:19]} {[%emt 00:00:02]} 18. Kf2
{[%clk 00:12:49]} {[%emt 00:00:38]} Bd7 {[%clk 00:13:07]} {[%emt 00:00:17]} 19.
Nb3 {[%clk 00:12:39]} {[%emt 00:00:15]} b6 {[%clk 00:09:03]} {[%emt 00:04:10]}
20. Nd4 {[%clk 00:11:52]} {[%emt 00:00:51]} Rb8 {[%clk 00:05:04]} {[%emt
00:04:04]} 21. Ra3 {[%clk 00:11:05]} {[%emt 00:00:53]} bxc5 {[%clk 00:04:45]}
{[%emt 00:00:24]} 22. bxc5 {[%clk 00:11:02]} {[%emt 00:00:08]} Rb7 {[%clk
00:04:46]} {[%emt 00:00:04]} 23. Ba6 {[%clk 00:09:59]} {[%emt 00:01:08]} Rc7
{[%clk 00:03:38]} {[%emt 00:01:13]} 24. Rha1 {[%clk 00:09:54]} {[%emt
00:00:10]} Re8 {[%clk 00:03:15]} {[%emt 00:00:28]} 25. Bd3 {[%clk 00:09:36]}
{[%emt 00:00:23]} Ra8 {[%clk 00:03:17]} {[%emt 00:00:04]} 26. Ra6 {[%clk
00:09:10]} {[%emt 00:00:31]} g6 {[%clk 00:02:47]} {[%emt 00:00:34]} 27. Bc2
{[%clk 00:08:06]} {[%emt 00:01:09]} Ne8 {[%clk 00:02:30]} {[%emt 00:00:22]} 28.
Ba4 {[%clk 00:07:44]} {[%emt 00:00:27]} Rac8 {[%clk 00:02:33]} {[%emt
00:00:02]} 29. Bc2 {[%clk 00:07:17]} {[%emt 00:00:31]} Ra8 {[%clk 00:02:19]}
{[%emt 00:00:20]} 30. Ba4 {[%clk 00:07:21]} {[%emt 00:00:01]} Rac8 {[%clk
00:01:37]} {[%emt 00:00:46]} 31. Bc2 {[%clk 00:07:24]} {[%emt 00:00:02]} Rb7
{[%clk 00:00:53]} {[%emt 00:00:50]} 32. Rxa7 {[%clk 00:07:13]} {[%emt
00:00:16]} Rcc7 {[%clk 00:00:24]} {[%emt 00:00:34]} 33. R7a6 {[%clk 00:06:59]}
{[%emt 00:00:19]} Rb2 {[%clk 00:00:25]} {[%emt 00:00:04]} 34. R1a2 {[%clk
00:06:48]} {[%emt 00:00:17]} Rbb7 {[%clk 00:00:16]} {[%emt 00:00:14]} 35. Ba4
{[%clk 00:06:37]} {[%emt 00:00:16]} Bc8 {[%clk 00:00:14]} {[%emt 00:00:07]} 36.
Bxc6 {[%clk 00:03:43]} {[%emt 00:02:59]} Rb8 {[%clk 00:00:17]} {[%emt
00:00:01]} 37. Ra8 {[%clk 00:02:43]} {[%emt 00:01:05]} Rxa8 {[%clk 00:00:06]}
{[%emt 00:00:17]} 38. Rxa8 {[%clk 00:02:40]} {[%emt 00:00:07]} Nf6 {[%clk
00:00:09]} {[%emt 00:00:02]} 39. Kg3 {[%clk 00:02:06]} {[%emt 00:00:40]} Kg7
{[%clk 00:00:13]} {[%emt 00:00:01]} 40. Kf4 {[%clk 00:02:05]} {[%emt 00:00:06]}
Be6 {[%clk 00:00:07]} {[%emt 00:00:11]} 41. Nxe6+ {[%clk 00:00:58]} {[%emt
00:01:12]} fxe6 {[%clk 00:00:11]} {[%emt 00:00:01]} 42. Ra6 {[%emt 00:00:14]}
1-0

[Event "Esbjerg Efterår 2024 - Esbjergmesterskabet"]
[Site "Esbjerg, Denmark"]
[Date "2024.10.18"]
[Round "1.7"]
[White "Justesen, Asger"]
[Black "Herskin, Kalle S."]
[Result "1-0"]
[TimeControl "1.-3. 20 min + 5 sek, 4.-7. 90 min + 30 sek + 15 min efter 40 træk"]
[WhiteElo "2086"]
[BlackElo "1814"]

1. d4 {[%clk 00:20:07]} {[%emt 00:00:01]} d5 {[%clk 00:20:09]} {[%emt
00:00:02]} 2. c4 {[%clk 00:20:08]} {[%emt 00:00:03]} c6 {[%clk 00:20:09]}
{[%emt 00:00:06]} 3. Nf3 {[%clk 00:20:09]} {[%emt 00:00:03]} Nf6 {[%clk
00:20:07]} {[%emt 00:00:08]} 4. e3 {[%clk 00:20:05]} {[%emt 00:00:09]} e6
{[%clk 00:20:06]} {[%emt 00:00:06]} 5. b3 {[%clk 00:20:05]} {[%emt 00:00:04]}
Nbd7 {[%clk 00:19:45]} {[%emt 00:00:26]} 6. Bd3 {[%clk 00:20:03]} {[%emt
00:00:07]} dxc4 {[%clk 00:18:28]} {[%emt 00:01:23]} 7. bxc4 {[%clk 00:19:48]}
{[%emt 00:00:21]} Qc7 {[%clk 00:16:35]} {[%emt 00:01:56]} 8. O-O {[%clk
00:19:12]} {[%emt 00:00:42]} c5 {[%clk 00:15:29]} {[%emt 00:01:11]} 9. Nc3
{[%clk 00:18:21]} {[%emt 00:00:56]} b6 {[%clk 00:13:43]} {[%emt 00:01:51]} 10.
d5 {[%clk 00:17:12]} {[%emt 00:01:13]} exd5 {[%clk 00:13:27]} {[%emt 00:00:22]}
11. cxd5 {[%clk 00:17:10]} {[%emt 00:00:06]} Bb7 {[%clk 00:13:16]} {[%emt
00:00:17]} 12. e4 {[%clk 00:16:18]} {[%emt 00:00:57]} Ne5 {[%clk 00:11:39]}
{[%emt 00:01:42]} 13. Bf4 {[%clk 00:12:28]} {[%emt 00:03:55]} Nxf3+ {[%clk
00:09:05]} {[%emt 00:02:39]} 14. Qxf3 {[%clk 00:12:31]} {[%emt 00:00:02]} Qc8
{[%clk 00:08:31]} {[%emt 00:00:40]} 15. e5 {[%clk 00:09:52]} {[%emt 00:02:44]}
Nxd5 {[%clk 00:08:16]} {[%emt 00:00:20]} 16. Nxd5 {[%clk 00:09:46]} {[%emt
00:00:11]} Qd7 {[%clk 00:07:36]} {[%emt 00:00:45]} 17. Be4 {[%clk 00:09:30]}
{[%emt 00:00:20]} O-O-O {[%clk 00:06:17]} {[%emt 00:01:25]} 18. Rfd1 {[%clk
00:08:44]} {[%emt 00:00:51]} Qa4 {[%clk 00:04:44]} {[%emt 00:01:38]} 19. Nxb6+
{[%clk 00:08:23]} {[%emt 00:00:26]} axb6 {[%clk 00:04:44]} {[%emt 00:00:04]} 20.
Bxb7+ {[%clk 00:08:24]} {[%emt 00:00:05]} Kc7 {[%clk 00:04:06]} {[%emt
00:00:44]} 21. Rxd8 {[%clk 00:07:15]} {[%emt 00:01:13]} Kxd8 {[%clk 00:03:59]}
{[%emt 00:00:12]} 22. Rd1+ {[%clk 00:06:28]} {[%emt 00:00:52]} 1-0